Cogmind - Beta 16 @@@ ROGUE MODE // 2026.01.02 @ 11:10:15 Player: naththebg Result: Destroyed by X-87 Electro with Compact HERF Cannon Performance ------------- Evolutions (9) 4500 Regions Visited (25) 5000 Robots Destroyed (487) 2435 Value Destroyed (28202) 28202 Prototype IDs (84) 1680 Alien Tech Used (0) 0 Bonus (26318) 26318 TOTAL SCORE: 68135 Bonus ------- Triggered High Security 1000 High Alert Combat Kills 10996 Follower Combat Kills 8429 Entered Garrisons 1800 Used RIF Installer 5000 Friendly Fire -907 Cogmind --------- Core Integrity 0/1600 Matter 148/300 Energy 43/100 System Corruption 11% Temperature Cool (0) Movement Core (50) Location -1/Access Parts ------- > --- POWER (2) -------- (None) > --- PROPULSION (5) --- (None) > --- UTILITY (14) ----- Advanced Signal Interpreter Relay Coupler [Swarmer] (41) Relay Coupler [Grunt] (59) Relay Coupler [Grunt] (47) Relay Coupler [Hunter] (28) > --- WEAPON (4) ------- (None) > --- INVENTORY (5) ---- (None) Peak State ------------ > --- POWER ------------ Micro Antimatter Reactor Quantum Reactor > --- PROPULSION ------- Enhanced Biometal Leg Enhanced Biometal Leg Experimental Myomer Leg Heavy Shield Leg > --- UTILITY ---------- Advanced Cooling System High-capacity Storage Unit Spectral Analyzer Experimental Sensor Array Advanced Signal Interpreter Experimental Targeting Computer Centrium Heavy Armor Plating Improved Thermal Defense Suite Relay Coupler [NC] Relay Coupler [Grunt] Relay Coupler [Sentry] Relay Coupler [Heavy] > --- WEAPON ----------- Enhanced Quantum Rifle Compact Linear Accelerator Improved Remote Datajack > --- INVENTORY -------- Particle Reactor Enhanced Biometal Leg Centrium Leg Improved Matter Compressor System Mapper Relay Coupler [NC] Relay Coupler [NC] Relay Coupler [Swarmer] Relay Coupler [Grunt] Relay Coupler [Sentry] Relay Coupler [Demolisher] Relay Coupler [Demolisher] Relay Coupler [Hunter] Enhanced Nova Cannon Enhanced Hardcell Cannon Smartbomb Launcher Improved Remote Datajack [Rating: 172] Favorites ----------- Power Light Quantum Reactor Engine F-cell Engine Power Core Enhanced Nuclear Core Reactor Light Quantum Reactor Propulsion Centrium Leg Treads Light Treads Leg Centrium Leg Wheel Armored Huge Wheel Flight Unit Improved Surge Thruster Utility Relay Coupler [NC] Device Improved Cooling System Storage High-capacity Storage Unit Processor Experimental Targeting Computer Hackware Relay Coupler [NC] Protection Layered Heavy Armor Plating Weapon Improved Light Cannon Energy Gun Medium Laser Energy Cannon Heavy Plasma Cannon Ballistic Gun Assault Rifle Ballistic Cannon Improved Light Cannon Launcher Heavy Missile Launcher Special Weapon Improved Remote Datajack Build | -11 -10 -9 -9 -8 -8 -7 -7 -7 -7 -6 -6 -6 -6 -5 -5 -4 -4 -3 -3 -3 -2 -2 -2 -2 -1 ------- Run | Yrd Mat Mat Min Mat Gar Fac Gar Fac Gar Fac Was Fac Gar Fac Gar Fac Gar Res Tes Gar Res Gar Res Gar Acc Slots Evolved 18 | . . 2 . 2 . 2 . . . 2 . . . 2 . 2 . 2 . . 2 . . . 2 Power 1 | . . . . . . . . . . . . . . . . . . 1 . . . . . . . Propulsion 3 | . . 1 . . . . . . . 1 . . . . . . . . . . 1 . . . . Utility 12 | . . 1 . 1 . 2 . . . 1 . . . 2 . 2 . 1 . . 1 . . . 1 Weapon 2 | . . . . 1 . . . . . . . . . . . . . . . . . . . . 1 Parts Attached 313 | 6 9 18 8 11 9 23 12 1 10 5 1 7 5 7 36 5 16 7 13 26 10 22 16 23 7 Power 34 | 1 1 1 1 . 1 5 1 . 1 1 . 1 . 1 4 . 3 2 . 3 1 3 2 1 . Engine 10 | 1 1 1 . . . 3 . . . . . 1 . . 2 . . 1 . . . . . . . Core 8 | . . . 1 . 1 2 1 . 1 1 . . . . 1 . . . . . . . . . . Reactor 16 | . . . . . . . . . . . . . . 1 1 . 3 1 . 3 1 3 2 1 . Propulsion 70 | 2 2 3 3 4 2 7 2 1 2 1 1 . . . 13 1 2 2 3 2 4 2 7 3 1 Treads 19 | . 2 3 3 4 2 2 . . 1 1 . . . . 1 . . . . . . . . . . Leg 39 | 2 . . . . . . . . . . . . . . 10 1 2 2 3 2 4 2 7 3 1 Wheel 10 | . . . . . . 5 2 1 1 . 1 . . . . . . . . . . . . . . Hover . | . . . . . . . . . . . . . . . . . . . . . . . . . . Flight 2 | . . . . . . . . . . . . . . . 2 . . . . . . . . . . Utility 141 | 1 4 6 3 2 4 6 5 . 4 2 . 5 3 5 13 3 5 2 8 15 4 15 5 16 5 Device 36 | . 2 . 2 . . 2 3 . 1 2 . . . 2 2 1 1 1 3 5 . 3 2 4 . Storage 11 | 1 1 . . . . 1 . . . . . 4 . . . . . . 1 . . 1 1 1 . Processor 11 | . 1 . . . . . . . . . . . . . 2 1 . . 2 2 2 1 . . . Hackware 55 | . . . . 1 . 1 . . 1 . . . 2 2 8 1 3 1 1 5 2 10 2 10 5 Protection 28 | . . 6 1 1 4 2 2 . 2 . . 1 1 1 1 . 1 . 1 3 . . . 1 . Artifact . | . . . . . . . . . . . . . . . . . . . . . . . . . . Weapon 68 | 2 2 8 1 5 2 5 4 . 3 1 . 1 2 1 6 1 6 1 2 6 1 2 2 3 1 Energy Gun 11 | 2 1 2 . 1 . 1 . . . . . . . . . . . . . 4 . . . . . Energy Cannon 14 | . . 1 . 3 2 3 . . . 1 . . . . . . 2 . . 1 . . . 1 . Ballistic Gun 6 | . 1 2 . . . . . . . . . 1 . . 2 . . . . . . . . . . Ballistic Cannon 18 | . . 2 . . . . 2 . 3 . . . 1 . 2 1 3 . 1 . . 1 2 . . Launcher 8 | . . 1 1 1 . . 1 . . . . . . 1 . . . 1 . 1 1 . . . . Special Weapon 11 | . . . . . . 1 1 . . . . . 1 . 2 . 1 . 1 . . 1 . 2 1 Impact Weapon . | . . . . . . . . . . . . . . . . . . . . . . . . . . Slashing Weapon . | . . . . . . . . . . . . . . . . . . . . . . . . . . Piercing Weapon . | . . . . . . . . . . . . . . . . . . . . . . . . . . Special Melee Weapon . | . . . . . . . . . . . . . . . . . . . . . . . . . . Unidentified Prototypes 28 | . . 3 . 1 . 4 . . . . . 1 . 2 5 1 . . 5 2 2 1 . 1 . Corrupted Parts 2 | . . . 1 . . . . . . . . . . . . . . . . . . 1 . . . System Corruption 11 | . . . 8 . . . . . . . . . . . . . . . . . . 3 . . . Parts Lost 119 | . 2 2 2 1 1 5 . 4 6 . 1 2 . . 18 1 5 15 . . 7 8 8 5 26 Power 15 | . . . . . 1 . . 1 . . . . . . 2 1 1 3 . . 2 . 1 . 3 Propulsion 30 | . 1 . 1 . . 4 . 1 2 . . . . . 7 . . 2 . . 1 1 . 1 9 Utility 49 | . . 1 1 . . 1 . 1 2 . 1 1 . . 4 . 3 9 . . 2 4 6 3 10 Weapon 25 | . 1 1 . 1 . . . 1 2 . . 1 . . 5 . 1 1 . . 2 3 1 1 4 Highest Loss Streak 16 | . 2 1 1 1 1 2 . 3 2 . 1 1 . . 7 1 2 7 . . 3 4 2 2 16 To Critical Strikes 2 | . . . . . . . . . . . . . . . 1 . . . . . . . . . 1 Average Backups 17 | 4 7 14 14 14 14 16 20 20 17 20 14 8 16 16 13 17 19 16 14 18 15 17 21 23 20 Power 1 | 1 1 1 . . . 1 1 1 . 1 . 1 2 2 . . . . . . 1 1 1 2 1 Propulsion 2 | 2 3 3 3 4 3 2 2 2 1 1 . 2 3 1 . . 1 2 . 2 1 . 2 3 3 Utility 9 | . 2 5 2 2 7 8 11 12 11 13 9 2 6 9 9 12 11 10 9 11 9 13 15 14 13 Weapon 3 | . . 4 7 7 4 4 3 3 3 5 3 1 3 3 2 2 3 3 2 2 2 2 2 2 1 Tool/Special . | . . . . . . . . . . . . . . . . . . . . . . . . . . Unused Backups 81 | . . 4 . . 8 1 8 . 2 . 13 1 9 1 9 1 3 . . 5 . 4 . 5 7 Power 2 | . . . . . . 1 . . . . 1 . . . . . . . . . . . . . . Propulsion 11 | . . 1 . . 1 . . . . . . . 4 1 1 1 . . . 2 . . . . . Utility 52 | . . 2 . . 4 . 6 . 1 . 11 . 2 . 7 . 2 . . 1 . 4 . 5 7 Weapon 15 | . . 1 . . 3 . 2 . 1 . 1 1 2 . 1 . 1 . . 2 . . . . . Tool/Special 1 | . . . . . . . . . . . . . 1 . . . . . . . . . . . . Average Slot Usage (%) 85 | . 95 95 99 97 98 96 81 74 67 69 74 71 71 75 77 92 91 73 60 87 87 90 94 96 86 Engine 2 | . 14 11 7 . . . 2 . . . . 4 6 5 1 . . . 6 1 . . . . . Core 2 | . . . 3 9 7 6 4 6 7 6 6 1 . . . 1 . . . . . . . . . Reactor 2 | . . . . . . . . . . . . . . . 1 3 4 6 . 6 7 7 7 8 6 Treads 6 | . 5 31 32 27 27 12 . . 1 6 5 . . . . . . . . . . . . . . Leg 9 | . 22 . . . . . . . . . . . . . 14 20 19 14 18 17 17 20 21 21 17 Wheel 3 | . . . . . . 7 15 14 8 6 10 13 13 11 . . . . . . . . . . . Device 10 | . 5 . 9 9 12 22 22 22 13 17 20 17 12 10 4 5 4 9 4 10 6 7 5 5 2 Storage 6 | . 14 11 11 9 9 7 7 7 7 6 4 8 13 11 4 5 5 4 4 4 4 4 4 4 3 Processor 4 | . 7 1 . . . . . . . . . . . . 4 13 10 5 4 9 11 10 8 8 7 Hackware 13 | . . . . . . 3 . . 3 6 6 6 4 10 28 31 29 16 8 17 21 27 32 33 37 Protection 6 | . . 19 12 17 14 11 9 7 11 6 6 6 6 11 3 . 1 2 2 6 4 . . 1 . Energy Cannon 3 | . . . . 10 17 14 9 . . . . . . . . . 1 . 1 . 1 . . 1 3 Ballistic Cannon 6 | . . 17 21 15 9 4 4 6 6 5 6 6 5 5 3 4 6 5 3 3 4 6 6 5 3 Special Weapon 2 | . . . . . . . 3 5 3 6 6 4 4 5 1 5 5 2 3 4 4 1 4 4 3 Peak Build Rating 172 | 6 10 17 20 26 31 55 71 71 69 74 77 72 73 88 119 131 135 151 134 151 172 151 156 158 154 Average Rating 84 | 3 7 13 18 23 28 44 65 70 62 68 71 69 70 81 82 122 124 120 94 141 158 141 144 147 135 On Entrance 75 | . 6 7 16 20 26 31 55 71 45 67 72 67 71 73 85 119 112 122 40 134 151 143 141 138 151 Avg Prop Armor Cover (%) 6 | . . . . . . 10 . . 4 4 8 . . . 8 5 5 3 15 . . 4 . . 27 Naked Turns . | . . . . . . . . . . . . . . . . . . . . . . . . . . Heaviest Build 149 | 13 27 45 45 49 60 139 149 149 149 142 135 119 124 131 136 85 95 129 90 121 115 102 146 144 139 Greatest Support 148 | 20 40 60 60 63 63 63 40 44 44 28 56 56 56 56 120 120 120 120 117 122 145 148 148 146 144 Greatest Overweight (x) 17 | . 1 . . . . 3 3 5 5 5 4 2 2 2 17 . . 1 1 1 1 . . . 2 Average Overweight (x) . | . . . . . . 1 2 3 3 4 1 1 1 2 . . . . . . . . . . . Largest Inventory Capacity 25 | 8 15 15 15 15 15 25 25 25 25 25 25 20 20 20 20 20 20 20 20 20 20 20 25 25 25 Average Capacity 19 | 7 9 15 15 15 15 18 25 25 25 25 18 15 20 20 16 20 20 20 20 20 20 20 24 25 24 Most Carried 25 | 7 9 15 15 15 15 25 25 25 25 25 25 17 20 20 20 20 20 19 20 20 19 20 25 25 25 Average Carried 18 | 4 7 14 14 14 14 17 24 25 20 24 17 10 18 19 15 18 19 16 15 19 16 18 22 24 21 Final Capacity 25 | 8 15 15 15 15 15 25 25 25 25 25 5 20 20 20 20 20 20 20 20 20 20 20 25 25 5 Final Carried 25 | 6 9 15 15 15 15 25 25 25 25 25 4 16 20 20 20 20 20 14 19 20 13 20 23 25 . Class Distribution -------------------- 14% | Botlord-Tank 13% | Botlord-Mutant 12% | Bothacker-Tank 10% | Botlord-Gunner 9% | Bothacker-Gunner 9% | Scavenger-Mutant 9% | Mutant 7% | Tank 5% | Scavenger-Tank 4% | Bothacker-Mutant Dominant Class ---------------- Mutant | -10/Materials Mutant | -9/Materials Scavenger-Mutant | -9/Mines Tank | -8/Materials Tank | -8/Garrison Scavenger-Tank | -7/Factory Bothacker-Gunner | -7/Garrison Bothacker-Gunner | -7/Factory Bothacker-Mutant | -7/Garrison Bothacker-Tank | -6/Factory Bothacker-Tank | -6/Waste Tank | -6/Factory Bothacker-Tank | -6/Garrison Botlord-Tank | -5/Factory Scavenger-Mutant | -5/Garrison Botlord-Gunner | -4/Factory Botlord-Gunner | -4/Garrison Botlord-Mutant | -3/Research Botlord-Mutant | -3/Testing Botlord-Mutant | -3/Garrison Botlord-Gunner | -2/Research Scavenger-Mutant | -2/Garrison Botlord-Tank | -2/Research Botlord-Tank | -2/Garrison Botlord-Tank | -1/Access Resources | -11 -10 -9 -9 -8 -8 -7 -7 -7 -7 -6 -6 -6 -6 -5 -5 -4 -4 -3 -3 -3 -2 -2 -2 -2 -1 ----------- Run | Yrd Mat Mat Min Mat Gar Fac Gar Fac Gar Fac Was Fac Gar Fac Gar Fac Gar Res Tes Gar Res Gar Res Gar Acc Matter Collected 19637 | 241 140 597 398 360 335 424 801 367 1259 243 . 436 583 1568 2293 506 1412 657 404 1386 688 1551 1045 1349 594 Remotely . | . . . . . . . . . . . . . . . . . . . . . . . . . . Salvage Created 15541 | . 638 838 242 563 418 1239 1116 529 719 154 . 498 352 1217 1161 477 828 439 83 1016 535 1161 816 426 76 Parts 790 | . 31 67 34 33 24 53 59 31 35 14 . 38 29 46 48 26 39 16 5 44 17 49 32 17 3 Haulers Intercepted 10 | . 2 2 . 2 . . . . . . . 2 . 2 . . . . . . . . . . . Recyclers Shooed 5 | . . 2 . . . 1 . 1 . . . . . . . 1 . . . . . . . . . Parts Field Recycled . | . . . . . . . . . . . . . . . . . . . . . . . . . . Retrieved Matter . | . . . . . . . . . . . . . . . . . . . . . . . . . . Parts Self-Destructed . | . . . . . . . . . . . . . . . . . . . . . . . . . . Prevented . | . . . . . . . . . . . . . . . . . . . . . . . . . . Parts Restored . | . . . . . . . . . . . . . . . . . . . . . . . . . . Kills | -11 -10 -9 -9 -8 -8 -7 -7 -7 -7 -6 -6 -6 -6 -5 -5 -4 -4 -3 -3 -3 -2 -2 -2 -2 -1 ------- Run | Yrd Mat Mat Min Mat Gar Fac Gar Fac Gar Fac Was Fac Gar Fac Gar Fac Gar Res Tes Gar Res Gar Res Gar Acc Combat Hostiles Destroyed 405 | . 15 26 24 11 17 24 35 13 26 5 . 8 11 25 35 12 19 14 . 21 10 23 16 7 8 Melee 1 | . . . . . . . . . . . . . . . . . . . . . . . . 1 . Guns 23 | . 15 4 . . . 1 . . . . . . . . 3 . . . . . . . . . . Cannons 280 | . . 15 13 8 12 18 28 5 24 5 . 7 10 23 23 10 19 3 . 8 10 15 15 5 4 AOE 95 | . . 7 11 3 5 5 5 8 2 . . 1 1 2 9 2 . 11 . 12 . 7 . . 4 Classes Destroyed 22 | . 4 5 1 . 3 1 1 . . . . . 1 . 2 . . 1 1 . 1 . . . 1 Worker 21 | . . 1 . 1 . 2 . 7 . 1 . 2 . 4 . 2 . 1 . . . . . . . Builder 13 | . . 2 . . . . . 1 . . . 6 . . . . . 1 . . 2 . . . 1 Hauler 10 | . 2 2 . 2 . . . . . . . 2 . 2 . . . . . . . . . . . Recycler 10 | . . 2 . 1 . 1 . 6 . . . . . . . . . . . . . . . . . Mechanic 1 | . . . . . . . . . . . . . . . . . . . . . . . . . 1 Operator 2 | . . 1 . . . 1 . . . . . . . . . . . . . . . . . . . Watcher 18 | . 1 3 . 1 . 2 . 1 . . . . . 2 1 . 1 1 1 . 1 . 3 . . Swarmer 103 | . 6 12 18 3 9 . 14 8 2 . . 3 1 1 4 3 4 . . 7 . 2 3 3 . Cutter 6 | . . . . . . . . . . . . . 3 . 1 . . . . 2 . . . . . Saboteur 6 | . . . . . . . 2 . . . . . . . 3 . . 1 . . . . . . . Grunt 146 | . 9 10 2 6 5 14 7 1 14 2 . 3 3 19 13 5 4 6 . 2 2 11 4 1 3 Brawler 6 | . . . . . . . . . . . . . . . 1 . 1 3 . . . 1 . . . Duelist 7 | . . . . . . 2 . . . 1 . . . . . . 1 . . 1 . . 1 1 . Protector 3 | . . . . . . . . . . . . . . . . . . 1 . . . . . . 2 Researcher 1 | . . . . . . . . . . . . . . . . . . . 1 . . . . . . Sentry 41 | . . 4 2 2 1 6 4 2 7 1 . . 1 1 3 . . . . 2 1 3 . 1 . Demolisher 2 | . . . 2 . . . . . . . . . . . . . . . . . . . . . . Specialist 7 | . . . . . 1 . 2 . . . . . . . 1 1 . . . 1 . . . . 1 Hunter 24 | . . . . . 1 . 1 . . . . 2 . 3 5 . 1 . . 5 1 2 3 . . Programmer 53 | . . . . . . 2 5 2 3 1 . . 3 1 3 3 8 3 . 2 3 4 5 3 2 Heavy 1 | . . . . . . . . . . . . . . . . . . . . . 1 . . . . Behemoth 1 | . . . . . . . . . . . . . . . 1 . . . . . . . . . . Combat Programmer 2 | . . . . . . . . . . . . . . . . . . . . . 2 . . . . Thug 1 | . . . . . . . 1 . . . . . . . . . . . . . . . . . . Butcher 2 | . . . . . 1 . . 1 . . . . . . . . . . . . . . . . . Best Kill Streak 16 | . 3 6 8 5 4 5 6 16 5 2 . 4 3 8 7 3 4 13 1 13 3 5 5 2 4 Combat Bots Only 13 | . 3 4 8 5 4 4 6 8 5 2 . 3 3 6 7 3 4 12 . 13 2 5 5 2 3 Max Kills in Single Turn 5 | . 2 5 3 2 3 2 2 3 2 1 . 3 1 2 3 2 2 2 1 3 2 2 1 1 2 Gunslinging 1 | . 1 . . . . . . . . . . . . . . . . . . . . . . . . Exploded 4 | . . 4 3 1 3 2 2 2 2 . . 1 1 1 3 2 . 2 . 3 . 2 . . 2 Melee 1 | . . . . . . . . . . . . . . . . . . . . . . . . 1 . Uniques/NPCs Destroyed . | . . . . . . . . . . . . . . . . . . . . . . . . . . Combat | -11 -10 -9 -9 -8 -8 -7 -7 -7 -7 -6 -6 -6 -6 -5 -5 -4 -4 -3 -3 -3 -2 -2 -2 -2 -1 -------- Run | Yrd Mat Mat Min Mat Gar Fac Gar Fac Gar Fac Was Fac Gar Fac Gar Fac Gar Res Tes Gar Res Gar Res Gar Acc Hostile Shots Fired 2521 | . 81 87 57 45 50 179 163 124 185 27 2 36 58 90 267 53 136 126 . 133 179 144 97 78 124 Missed 802 | . 18 26 12 15 15 65 47 40 54 8 . 9 20 28 76 17 53 38 . 52 44 55 45 24 41 Hits 1719 | . 63 61 45 30 35 114 116 84 131 19 2 27 38 62 191 36 83 88 . 81 135 89 52 54 83 Melee 31 | . . . . . . 7 . . . 1 2 . . . 4 . 3 13 . . 1 . . . . Projectile 1688 | . 63 61 45 30 35 107 116 84 131 18 . 27 38 62 187 36 80 75 . 81 134 89 52 54 83 AOE 49 | . . . 2 . . 1 . . . . . . 1 . 2 2 . . . 1 7 . . . 33 Critical Strikes 70 | . . . 1 3 . 1 3 2 5 2 1 . 2 . 8 . 9 8 . 1 8 5 6 2 3 Actively Blocked 1 | . . . . . . . 1 . . . . . . . . . . . . . . . . . . Part Disruptions 3 | . . . . . . . 1 . . . . . . . . . . . . . . 2 . . . Damage Taken 33079 | . 680 706 576 506 450 1559 1450 1141 1330 313 74 459 466 1168 3744 814 1571 2145 103 1124 4370 1876 1246 1175 4033 Core 4680 | . 187 56 71 46 23 124 134 108 82 40 . 47 15 98 509 38 294 171 55 75 458 156 98 191 1604 Absorbed by Shields 2834 | . . . . . . . 212 . 304 . . . 147 . 733 7 154 48 . 384 . 315 . 213 317 Redirected to Shielding 182 | . . . . . . 44 100 . 38 . . . . . . . . . . . . . . . . Ignored by Resistances 1309 | . . . . . 46 . 52 . . . . . . 145 32 68 122 148 . 178 92 237 . 138 51 Regen/Repaired (Parts) 2188 | . . . . 88 . 377 246 . . 277 . . . 307 . . . 102 . . 791 . . . . Core Remaining (%) 62 | 100 25 . 68 . 87 . . . 36 . . . 88 . 39 . 71 . . 76 . . . 37 . Volleys Fired 1546 | . 62 65 35 33 39 81 78 47 66 23 . 31 38 98 125 53 80 54 41 100 72 93 68 104 60 Largest 3 | . 2 2 2 3 3 3 3 1 1 1 . 1 1 1 2 1 2 2 1 2 2 2 2 2 2 Hottest 203 | . 90 70 66 169 198 203 200 70 90 65 . 65 65 65 111 65 178 116 120 123 178 178 116 178 178 Shots Fired 2136 | . 105 109 63 93 73 162 136 48 71 23 1 32 37 97 134 53 125 64 41 107 116 138 108 121 79 Gun 167 | . 105 15 . . . 6 . . . . . . . . 16 . . . . 19 6 . . . . Cannon 1609 | . . 90 55 90 70 145 132 40 68 21 1 32 30 81 95 29 95 36 20 64 86 108 95 77 49 Launcher 93 | . . 4 8 3 3 6 4 8 3 . . . . . 17 . . 14 . 9 . 9 . . 5 Special 267 | . . . . . . 5 . . . 2 . . 7 16 6 24 30 14 21 15 24 21 13 44 25 Kinetic 1225 | . 13 97 55 56 28 29 38 40 67 21 1 32 30 81 111 29 76 36 9 38 48 98 95 69 28 Thermal 551 | . 92 8 . 34 42 122 94 . 1 . . . . . . . 19 . 11 45 44 10 . 8 21 Explosive 93 | . . 4 8 3 3 6 4 8 3 . . . . . 17 . . 14 . 9 . 9 . . 5 Electromagnetic . | . . . . . . . . . . . . . . . . . . . . . . . . . . Robot Hit Streak 35 | . 10 9 6 13 9 14 9 7 10 4 . 4 10 8 25 15 16 13 9 35 16 16 8 17 11 Robot Miss Streak 6 | . 3 6 3 2 2 3 3 4 2 2 . 3 1 4 3 1 3 4 2 3 2 3 3 2 4 Penetration Max 2 | . . . . . . . . . 1 . . 1 . 1 2 . . . . . . . . . . Secondary Targets 2 | . 2 . . . . . . . . . . . . . . . . . . . . . . . . Max Gunslinging Chain 1 | . 1 . . . . . . . . . . . . . . . . . . . . . . . . Shots Hit Robots 1371 | . 71 64 31 60 39 95 77 25 52 15 . 12 24 67 109 41 82 39 21 78 86 82 68 80 53 Core Hits 673 | . 32 41 28 24 21 55 42 26 22 6 . 14 10 27 60 13 33 41 2 52 19 49 26 16 14 Critical Kills 2 | . . . . . . . . . . . . . . . . . . . . 1 . . . 1 . Critical Parts Destroyed 1 | . . . . . . . . . . . . . . . 1 . . . . . . . . . . Critical Strikes 86 | . 5 2 2 3 1 1 1 7 9 1 . 4 2 8 8 3 6 2 1 3 3 6 5 3 . Burn 7 | . 5 . . . . . . . . . . . . . . . . . . 2 . . . . . Meltdown 2 | . . . . . . . . . . . . . . . . . . . . 1 . . . 1 . Destroy 1 | . . . . . . . . . . . . . . . 1 . . . . . . . . . . Blast 76 | . . 2 2 3 1 1 1 7 9 1 . 4 2 8 7 3 6 2 1 . 3 6 5 2 . Melee Attacks . | . . . . . . . . . . . . . . . . . . . . . . . . . . Impact . | . . . . . . . . . . . . . . . . . . . . . . . . . . Slashing . | . . . . . . . . . . . . . . . . . . . . . . . . . . Piercing . | . . . . . . . . . . . . . . . . . . . . . . . . . . Sneak Attacks . | . . . . . . . . . . . . . . . . . . . . . . . . . . Combat Hostiles . | . . . . . . . . . . . . . . . . . . . . . . . . . . Follow-up Attacks . | . . . . . . . . . . . . . . . . . . . . . . . . . . Damage Inflicted 67786 | . 895 1866 1404 1527 1183 3232 4796 3405 4709 1056 . 1409 1175 4107 7755 1693 2789 3346 275 4418 3227 5497 2924 2034 3064 Guns 1769 | . 866 117 . . . 65 . . . . . . . . 333 . . . . 278 110 . . . . Cannons 49597 | . . 1137 714 1244 869 2327 4057 2139 4467 1056 . 1043 1175 3828 5347 1329 2770 985 188 2228 3117 3117 2904 1974 1582 Explosions 15867 | . . 590 668 283 314 802 730 1241 195 . . 366 . 279 2064 364 . 2361 . 1748 . 2380 . . 1482 Melee . | . . . . . . . . . . . . . . . . . . . . . . . . . . Ramming 553 | . 29 22 22 . . 38 9 25 47 . . . . . 11 . 19 . 87 164 . . 20 60 . Kinetic 41693 | . 137 1177 714 794 420 389 2327 2139 4467 1056 . 1043 1175 3828 5680 1329 2338 985 44 1382 1760 2934 2904 1703 968 Thermal 10724 | . 729 119 . 450 449 2003 1730 . . . . 366 . 279 . 364 432 . 144 1124 1467 183 . 271 614 Explosive 14816 | . . 548 668 283 314 802 730 1241 195 . . . . . 2064 . . 2361 . 1748 . 2380 . . 1482 Electromagnetic . | . . . . . . . . . . . . . . . . . . . . . . . . . . Impact . | . . . . . . . . . . . . . . . . . . . . . . . . . . Slashing . | . . . . . . . . . . . . . . . . . . . . . . . . . . Piercing . | . . . . . . . . . . . . . . . . . . . . . . . . . . Highest Corruption 32 | . 2 . 8 . . . 2 7 9 1 17 17 17 3 4 4 10 31 31 32 6 14 14 19 11 Average Corruption 11 | . 2 . 8 . . . 1 3 8 1 9 17 17 2 3 3 8 29 31 31 1 7 14 15 5 Corruption Purged . | . . . . . . . . . . . . . . . . . . . . . . . . . . Corruption Blocked . | . . . . . . . . . . . . . . . . . . . . . . . . . . Effects 573 | . 4 . 8 . . . 19 16 49 . 4 21 48 13 37 8 51 16 38 89 6 44 33 68 1 Message Errors 137 | . 1 . 4 . . . 7 7 9 . . 4 10 3 12 . 15 5 7 21 2 12 5 13 . Matter Fused 132 | . 1 . . . . . 4 2 16 . 1 3 15 3 8 . 17 4 9 14 . 13 7 14 1 Heat Flow Errors 82 | . . . 2 . . . 1 1 7 . . 3 9 2 3 4 8 3 5 15 1 6 4 8 . Energy Discharges 60 | . 1 . . . . . 1 1 2 . 1 4 6 1 3 2 3 2 5 12 . 3 3 10 . Parts Rejected 7 | . . . . . . . . . 1 . . . . . 1 . . . . 1 . . 3 1 . Parts Fused 4 | . . . . . . . . . 1 . . 1 . . . . . . . 2 . . . . . Data Loss (minor) 62 | . 1 . . . . . 3 2 6 . 1 2 2 2 5 1 2 . 4 10 1 3 5 12 . Data Loss (major) 25 | . . . 1 . . . 2 2 2 . . . . 1 3 1 4 . 2 1 . . 3 3 . Misfires 34 | . . . 1 . . . 1 1 5 . 1 2 1 . 2 . 1 . 2 6 1 7 1 2 . Alerts 12 | . . . . . . . . . . . . 1 3 . . . 1 . 2 4 . . . 1 . Misdirections 2 | . . . . . . . . . . . . . . . . . . 1 . . . . . 1 . Weapon Failures 16 | . . . . . . . . . . . . 1 2 1 . . . 1 2 3 1 . 2 3 . Overload Shots 2 | . . . . . . . 1 . 1 . . . . . . . . . . . . . . . . Overflow Damage 4553 | . . 41 58 21 54 49 578 695 524 81 . 179 86 415 462 133 39 78 17 94 133 343 223 67 183 Projectiles 3780 | . . 6 2 16 2 30 567 537 524 81 . 132 86 415 433 132 39 25 3 14 133 228 223 67 85 Explosions 759 | . . 35 56 5 52 19 11 158 . . . 47 . . 29 1 . 53 . 80 . 115 . . 98 Melee 14 | . . . . . . . . . . . . . . . . . . . 14 . . . . . . Knockbacks 210 | . . 9 4 10 6 7 7 4 15 8 . . 1 13 27 6 16 3 1 13 9 14 17 11 9 Impact 9 | . . 1 . . . 1 . . 1 . . . . . . . 1 . 1 3 . . . 1 . Kinetic 177 | . . 8 4 9 5 5 5 4 13 7 . . 1 11 20 6 15 3 . 10 6 11 15 10 9 Secondary 24 | . . . . 1 1 1 2 . 1 1 . . . 2 7 . . . . . 3 3 2 . . Self-Inflicted Damage 825 | . . 92 94 21 15 54 71 84 25 . . . . . 197 . . 104 . . . . . . 68 Shots 24 | . . 2 4 1 1 2 2 3 1 . . . . . 4 . . 3 . . . . . . 1 Rammed 22 | . . 3 4 . . 2 1 2 7 . . . . . 3 . . . . . . . . . . Targets Rammed 57 | . 9 3 4 . . 2 1 2 7 . . . . . 3 . 3 . 3 15 . . 1 4 . Kicked 35 | . 9 . . . . . . . . . . . . . . . 3 . 3 15 . . 1 4 . Crushed . | . . . . . . . . . . . . . . . . . . . . . . . . . . Highest Temperature 453 | . 240 124 227 210 156 245 117 203 334 3 . 222 221 330 186 194 300 453 234 440 299 250 237 254 225 Average Temperature 75 | . 61 36 71 41 62 69 34 49 116 3 . 112 97 69 18 73 73 142 80 115 112 58 95 79 101 Received Heat Transfer 4953 | . 261 231 63 303 180 426 324 87 618 129 . 9 90 228 656 60 226 264 . 114 270 204 9 111 90 Effects 9 | . . . . 1 . . . . 3 . . . . . . . . 3 . 1 1 . . . . Shutdowns 3 | . . . . . . . . . . . . . . . . . . 2 . 1 . . . . . Energy Bleed 1 | . . . . . . . . . . . . . . . . . . . . . 1 . . . . Interference 4 | . . . . 1 . . . . 3 . . . . . . . . . . . . . . . . Damage (minor) 1 | . . . . . . . . . . . . . . . . . . 1 . . . . . . . Siege Activations . | . . . . . . . . . . . . . . . . . . . . . . . . . . Martial Activations . | . . . . . . . . . . . . . . . . . . . . . . . . . . Shielding Activations . | . . . . . . . . . . . . . . . . . . . . . . . . . . Robots Disrupted . | . . . . . . . . . . . . . . . . . . . . . . . . . . Combat Hostiles . | . . . . . . . . . . . . . . . . . . . . . . . . . . Robots Corrupted 6 | . . . . . . . 2 . . . . . . . 1 . . . 1 . . 1 1 . . Combat Hostiles 4 | . . . . . . . 2 . . . . . . . . . . . . . . 1 1 . . Parts Fried 11 | . . . . . . . 2 . . . . . . . 1 . . . 2 . . 5 . 1 . Impact Corruptions 12 | . . . . . . . 4 . 1 . . . . . 3 . . . 1 1 . 1 1 . . Robots Melted 2 | . . . . . . . . . . . . . . . . . . . . 1 . . . 1 . Combat Hostiles 2 | . . . . . . . . . . . . . . . . . . . . 1 . . . 1 . Parts Melted 29 | . 5 . . . 2 8 9 . . . . . . 1 . . . . . 3 . . . 1 . Heat Transferred 14598 | . 2435 272 . 851 768 3324 2366 . . . . 250 . 250 . 300 351 . 148 1332 1156 148 . 222 425 Parts Sabotaged 5 | . . . . . . . . . . . . . . . . . . 4 . . 1 . . . . Parts Stolen . | . . . . . . . . . . . . . . . . . . . . . . . . . . Parts Stripped . | . . . . . . . . . . . . . . . . . . . . . . . . . . Power Chain Reactions . | . . . . . . . . . . . . . . . . . . . . . . . . . . Alert | -11 -10 -9 -9 -8 -8 -7 -7 -7 -7 -6 -6 -6 -6 -5 -5 -4 -4 -3 -3 -3 -2 -2 -2 -2 -1 ------- Run | Yrd Mat Mat Min Mat Gar Fac Gar Fac Gar Fac Was Fac Gar Fac Gar Fac Gar Res Tes Gar Res Gar Res Gar Acc Maximum Alert Level 5 | . . 2 2 2 4 2 5 3 3 2 . . 3 4 5 5 5 5 3 5 4 5 4 5 5 Low Security (%) 8 | 100 100 12 . 44 . . . 13 10 . 100 100 15 . . . . . . . . . . . . Level 1 10 | . . 53 77 27 18 4 4 27 11 . . . 16 . . . . . . . . . . . . Level 2 18 | . . 33 22 28 37 95 24 17 10 100 . . 24 14 . . . . 31 14 . . . . . Level 3 21 | . . . . . 40 . 31 42 67 . . . 43 61 33 . . . 68 5 . 5 70 14 . Level 4 21 | . . . . . 3 . 30 . . . . . . 24 25 96 13 94 . 23 100 60 29 22 5 Level 5 18 | . . . . . . . 9 . . . . . . . 40 . 85 5 . 56 . 33 . 62 3 High Security 1 | . . . . . . . . . . . . . . . . 3 . . . . . . . . 90 Max Security . | . . . . . . . . . . . . . . . . . . . . . . . . . . Peak Influence 3040 | . 154 433 455 515 1144 660 1607 843 1085 573 173 196 1031 1327 2258 1628 2466 1610 857 2221 1495 2325 1413 2593 3040 Initial 1555 | . . 34 163 119 309 600 398 843 191 569 172 72 114 541 690 1185 1139 1386 857 469 1248 971 897 1058 1555 Average 1025 | . 59 328 353 279 671 543 978 534 716 512 141 150 612 979 1398 1319 2052 1403 736 1564 1338 1604 1011 1763 2031 Influence Increases 25780 | . 441 868 654 681 865 722 1219 499 994 186 1 341 937 1315 1828 995 1647 981 131 1832 839 1814 990 2685 2315 Destroy 0b10 Robot/C 11700 | . 300 520 480 380 360 480 760 260 560 100 . 160 260 640 820 400 660 460 20 700 340 760 480 800 1000 Destroy 0b10 Robot/NC 590 | . 15 55 . 25 . 30 5 75 5 5 . 50 5 70 25 25 5 25 5 15 25 . 50 . 75 Destroy Leader 1508 | . 66 110 70 86 10 114 50 72 40 30 . 24 30 112 50 82 50 72 2 70 64 50 108 50 96 Allied During Kill 3771 | . . . . 44 9 . 17 3 15 . . . 14 130 110 274 447 217 2 466 221 253 113 820 616 Successful Hack 245 | . 15 5 . 29 . 4 7 . . 29 . 10 46 5 . . . 12 11 . 24 7 2 18 21 Disable Machine 1035 | . . 60 . 60 15 45 15 15 15 15 . 60 . 210 30 120 30 15 60 45 45 60 45 45 30 Anti-Garrison Action 3000 | . . . . . 450 . 250 . 150 . . . 200 . 500 . 350 . . 450 . 300 . 350 . Destroy Structure 2926 | . . 43 59 42 21 49 70 74 44 7 1 37 7 148 188 94 60 180 16 86 120 354 192 557 477 Partial Spotted 60 | . 15 . . . . . . . . . . . . . 30 . . . . . . 15 . . . Lose Combat Pursuer 945 | . 30 75 45 15 . . 45 . 165 . . . 375 . 75 . 45 . 15 . . 15 . 45 . Influence Decreases 22860 | . 358 532 766 512 197 1297 181 1832 183 778 391 281 69 1359 557 1625 809 1922 1030 237 1765 1514 1174 1503 1988 Entered New Map 10779 | . . 49 256 188 167 544 171 764 83 516 321 31 49 490 297 1073 489 1080 668 157 973 324 698 353 1038 Time Decay 5314 | . 346 463 490 254 . 553 . 428 . 262 60 230 . 494 . 362 . 342 362 . 362 . 286 . 20 Lost Part 1182 | . 12 20 20 10 10 50 . 40 60 . 10 20 . . 180 10 50 150 . . 70 80 80 50 260 Lost Ally 2710 | . . . . 60 20 . 10 . 40 . . . 20 100 80 180 270 350 . 80 360 160 110 200 670 Purge Threat 2875 | . . . . . . 150 . 600 . . . . . 275 . . . . . . . 950 . 900 . Squads Dispatched 73 | . 5 3 . 3 . 4 . 5 . 1 . 1 . 9 . 4 . 11 2 . 7 . 4 . 14 Investigation 5 | . 1 1 . 2 . . . . . . . . . 1 . . . . . . . . . . . Extermination 13 | . . . . . . 3 . 2 . 1 . . . 2 . 1 . 1 . . 2 . 1 . . Reinforcement 16 | . 4 1 . 1 . 1 . . . . . 1 . 4 . . . 2 1 . . . 1 . . Assault 34 | . . 1 . . . . . . . . . . . 2 . 2 . 7 1 . 5 . 2 . 14 Garrison 5 | . . . . . . . . 3 . . . . . . . 1 . 1 . . . . . . . Intercept . | . . . . . . . . . . . . . . . . . . . . . . . . . . Searches Triggered . | . . . . . . . . . . . . . . . . . . . . . . . . . . Unchained Authorized 1 | . . . . . . . . . . . . . . . . . . . . . 1 . . . . Construction Impeded 6 | . . 1 . 1 . . . . . . . 1 . 2 . . . . . . . . 1 . . Haulers Reinforced 2 | . . . . . . . . . . . . . . 1 . . . 1 . . . . . . . Active Scanning Responses . | . . . . . . . . . . . . . . . . . . . . . . . . . . Cargo Convoy Interrupts 1 | . . . . . . . . 1 . . . . . . . . . . . . . . . . . Stealth | -11 -10 -9 -9 -8 -8 -7 -7 -7 -7 -6 -6 -6 -6 -5 -5 -4 -4 -3 -3 -3 -2 -2 -2 -2 -1 --------- Run | Yrd Mat Mat Min Mat Gar Fac Gar Fac Gar Fac Was Fac Gar Fac Gar Fac Gar Res Tes Gar Res Gar Res Gar Acc Distress Signals 15 | . 1 3 1 . . 2 1 . . . . 2 . 1 . . . 1 1 . 1 . 1 . . Communications Jammed 342 | . . . . . . . . . . . . . . . 9 54 4 133 10 . 72 . 38 . 22 Distress Signals 316 | . . . . . . . . . . . . . . . 9 54 4 131 10 . 48 . 38 . 22 Times Spotted 855 | . 26 40 29 23 16 34 46 26 35 6 6 9 35 38 54 29 46 33 5 42 62 40 32 57 86 Peak Tracking Total 12 | . 6 9 5 6 4 6 8 10 9 4 6 4 4 8 8 6 12 9 2 10 10 6 7 12 11 Tactical Retreats 38 | . 2 3 2 1 . . 3 . 6 . . . 12 . 5 . 1 . 1 . . 1 . 1 . Traps | -11 -10 -9 -9 -8 -8 -7 -7 -7 -7 -6 -6 -6 -6 -5 -5 -4 -4 -3 -3 -3 -2 -2 -2 -2 -1 ------- Run | Yrd Mat Mat Min Mat Gar Fac Gar Fac Gar Fac Was Fac Gar Fac Gar Fac Gar Res Tes Gar Res Gar Res Gar Acc Traps Triggered 71 | . 1 1 . 1 3 5 9 2 11 2 . . 5 . 14 1 3 . . 4 2 . 1 6 . Indirectly . | . . . . . . . . . . . . . . . . . . . . . . . . . . Trap Hack Attempts . | . . . . . . . . . . . . . . . . . . . . . . . . . . Triggered . | . . . . . . . . . . . . . . . . . . . . . . . . . . Disarmed . | . . . . . . . . . . . . . . . . . . . . . . . . . . Reprogrammed . | . . . . . . . . . . . . . . . . . . . . . . . . . . Reused . | . . . . . . . . . . . . . . . . . . . . . . . . . . Traps Extracted . | . . . . . . . . . . . . . . . . . . . . . . . . . . Installed 4 | . . . 4 . . . . . . . . . . . . . . . . . . . . . . Triggered . | . . . . . . . . . . . . . . . . . . . . . . . . . . Machines | -11 -10 -9 -9 -8 -8 -7 -7 -7 -7 -6 -6 -6 -6 -5 -5 -4 -4 -3 -3 -3 -2 -2 -2 -2 -1 ---------- Run | Yrd Mat Mat Min Mat Gar Fac Gar Fac Gar Fac Was Fac Gar Fac Gar Fac Gar Res Tes Gar Res Gar Res Gar Acc Machines Disabled 111 | . . 4 . 4 5 3 2 1 2 1 . 4 4 14 8 8 10 1 6 8 3 10 3 8 2 Max in Single Turn 4 | . . 2 . 1 1 1 1 1 1 1 . 4 1 4 2 4 1 1 1 1 1 2 1 1 . Garrison Access 3 | . . . . . . 1 . . . 1 . . . . . . . 1 . . . . . . . Garrison Relay 33 | . . . . . 4 . 1 . 1 . . . 4 . 4 . 5 . . 5 . 4 . 5 . Phase Generator 2 | . . . . . 1 . . . . . . . . . . . . . . . . 1 . . . Machines Repaired . | . . . . . . . . . . . . . . . . . . . . . . . . . . Machines Dismantled . | . . . . . . . . . . . . . . . . . . . . . . . . . . Machines Sabotaged . | . . . . . . . . . . . . . . . . . . . . . . . . . . Overloaded Fab Kills . | . . . . . . . . . . . . . . . . . . . . . . . . . . Hacking | -11 -10 -9 -9 -8 -8 -7 -7 -7 -7 -6 -6 -6 -6 -5 -5 -4 -4 -3 -3 -3 -2 -2 -2 -2 -1 --------- Run | Yrd Mat Mat Min Mat Gar Fac Gar Fac Gar Fac Was Fac Gar Fac Gar Fac Gar Res Tes Gar Res Gar Res Gar Acc Machines Accessed 84 | . 4 3 1 5 2 6 2 5 3 7 . 3 4 10 1 4 1 2 4 4 2 3 4 2 2 Terminals 48 | . 4 2 . 2 2 3 2 2 3 3 . 1 4 3 1 1 1 . 2 4 . 3 2 2 1 Fabricators 5 | . . . . . . 1 . . . . . . . 2 . 1 . . . . . . . . 1 Repair Stations 8 | . . . . 1 . . . . . 2 . . . 1 . 1 . 2 1 . . . . . . Recycling Units 4 | . . 1 . . . . . 1 . . . 1 . 1 . . . . . . . . . . . Scanalyzers 7 | . . . . 1 . . . 1 . 1 . . . 2 . . . . . . 1 . 1 . . Garrison Access 11 | . . . . 1 . 2 . 1 . 1 . 1 . 1 . 1 . . 1 . 1 . 1 . . Total Hacks 149 | . 13 8 1 14 3 12 2 9 4 14 . 6 5 18 1 5 1 3 5 5 3 5 6 3 3 Successful 72 | . 5 3 1 9 . 6 1 6 1 7 . 4 3 7 . 2 . 1 4 . 2 2 5 2 1 Failed 76 | . 8 5 . 4 3 6 1 3 3 7 . 2 2 11 1 3 1 2 1 5 1 3 1 1 2 Catastrophic 24 | . 4 . . 2 1 2 1 . 1 2 . 1 1 2 . 1 . 1 1 4 . . . . . Database Lockouts 1 | . . . . 1 . . . . . . . . . . . . . . . . . . . . . Manual 30 | . 1 1 . 3 . 6 . 1 . 1 . 3 . 5 . 3 . 3 2 . . . . . 1 Terminals 87 | . 13 5 . 8 3 8 2 5 4 4 . 4 5 4 1 2 1 . 2 5 . 5 2 3 1 Fabricators 8 | . . . . . . 2 . . . . . . . 3 . 1 . . . . . . . . 2 Repair Stations 16 | . . . . 2 . . . . . 7 . . . 1 . 1 . 3 2 . . . . . . Recycling Units 7 | . . 3 . . . . . 1 . . . 1 . 2 . . . . . . . . . . . Scanalyzers 19 | . . . . 3 . . . 2 . 2 . . . 7 . . . . . . 2 . 3 . . Garrison Access 11 | . . . . 1 . 2 . 1 . 1 . 1 . 1 . 1 . . 1 . 1 . 1 . . Terminal Hacks 27 | . 4 2 1 2 . 2 1 4 1 1 . 1 3 . . . . . . . . 2 1 2 . Robot Analysis 1 | . . . . 1 . . . . . . . . . . . . . . . . . . . . . Prototype ID Bank 5 | . 1 . . . . 1 . . . 1 . 1 . . . . . . . . . . 1 . . Open Door 4 | . . . 1 . . . 1 . . . . . . . . . . . . . . 1 . 1 . Emergency Access Points 4 | . 1 . . . . . . . . . . . 1 . . . . . . . . 1 . 1 . Terminal Index 1 | . . . . 1 . . . . . . . . . . . . . . . . . . . . . Alert Level 1 | . . 1 . . . . . . . . . . . . . . . . . . . . . . . Unreport Threat 5 | . . . . . . 1 . 4 . . . . . . . . . . . . . . . . . Locate Traps 1 | . 1 . . . . . . . . . . . . . . . . . . . . . . . . Recall Reinforcements 1 | . 1 . . . . . . . . . . . . . . . . . . . . . . . . Zone Layout 1 | . . 1 . . . . . . . . . . . . . . . . . . . . . . . Garrison Registry 1 | . . . . . . . . . 1 . . . . . . . . . . . . . . . . Patrol Navigation 1 | . . . . . . . . . . . . . 1 . . . . . . . . . . . . Security Stations 1 | . . . . . . . . . . . . . 1 . . . . . . . . . . . . Fabricator Hacks 1 | . . . . . . . . . . . . . . . . 1 . . . . . . . . . Build 1 | . . . . . . . . . . . . . . . . 1 . . . . . . . . . Repair Station Hacks 6 | . . . . 2 . . . . . 3 . . . . . . . . 1 . . . . . . Scan Component 3 | . . . . 1 . . . . . 2 . . . . . . . . . . . . . . . Repair 2 | . . . . 1 . . . . . 1 . . . . . . . . . . . . . . . Refit 1 | . . . . . . . . . . . . . . . . . . . 1 . . . . . . Recycling Unit Hacks 4 | . . 1 . . . . . 1 . . . 1 . 1 . . . . . . . . . . . Retrieve Components 4 | . . 1 . . . . . 1 . . . 1 . 1 . . . . . . . . . . . Scanalyzer 10 | . . . . 2 . . . . . 1 . . . 3 . . . . . . 1 . 3 . . Retrieve Study 10 | . . . . 2 . . . . . 1 . . . 3 . . . . . . 1 . 3 . . Garrison Access Hacks 11 | . . . . 1 . 2 . 1 . 1 . 1 . 1 . 1 . . 1 . 1 . 1 . . Unlock Access 9 | . . . . 1 . 1 . 1 . . . 1 . 1 . 1 . . 1 . 1 . 1 . . Seal Access 2 | . . . . . . 1 . . . 1 . . . . . . . . . . . . . . . Unauthorized Hacks 13 | . 1 . . 2 . 2 . . . 1 . 1 . 2 . . . 1 2 . . . . . 1 Terminals 8 | . 1 . . 2 . 2 . . . . . 1 . . . . . . 1 . . . . . 1 Assimilate 1 | . . . . . . . . . . . . . . . . . . . 1 . . . . . . Botnet 5 | . . . . 1 . 2 . . . . . 1 . . . . . . . . . . . . 1 Disrupt 1 | . 1 . . . . . . . . . . . . . . . . . . . . . . . . Operators 1 | . . . . 1 . . . . . . . . . . . . . . . . . . . . . Fabricators 1 | . . . . . . . . . . . . . . 1 . . . . . . . . . . . Liberate 1 | . . . . . . . . . . . . . . 1 . . . . . . . . . . . Repair Stations 4 | . . . . . . . . . . 1 . . . 1 . . . 1 1 . . . . . . Mechanics 4 | . . . . . . . . . . 1 . . . 1 . . . 1 1 . . . . . . Recycling Units . | . . . . . . . . . . . . . . . . . . . . . . . . . . Scanalyzers . | . . . . . . . . . . . . . . . . . . . . . . . . . . Garrison Access . | . . . . . . . . . . . . . . . . . . . . . . . . . . Data Cores Recovered 2 | . . 1 . . . 1 . . . . . . . . . . . . . . . . . . . Used . | . . . . . . . . . . . . . . . . . . . . . . . . . . Hacking Detections 59 | . 4 3 . 3 2 4 1 3 3 5 . 1 3 5 1 3 1 2 2 4 2 1 3 1 2 Full Trace Events 2 | . . . . . 1 . . . . . . . . 1 . . . . . . . . . . . Feedback Events . | . . . . . . . . . . . . . . . . . . . . . . . . . . Feedback Blocked . | . . . . . . . . . . . . . . . . . . . . . . . . . . Robot Schematics Acquired 1 | . . . . . . . . . . . . . . . . . . . 1 . . . . . . Robots Built . | . . . . . . . . . . . . . . . . . . . . . . . . . . Authchips . | . . . . . . . . . . . . . . . . . . . . . . . . . . Time . | . . . . . . . . . . . . . . . . . . . . . . . . . . Total Robot Build Rating . | . . . . . . . . . . . . . . . . . . . . . . . . . . Part Schematics Acquired 1 | . . . . . . . . . . . . . . . . . . . 1 . . . . . . Parts Built 1 | . . . . . . . . . . . . . . . . 1 . . . . . . . . . Authchips . | . . . . . . . . . . . . . . . . . . . . . . . . . . Time 69 | . . . . . . . . . . . . . . . . 69 . . . . . . . . . Total Part Build Rating 9 | . . . . . . . . . . . . . . . . 9 . . . . . . . . . Part Studies Acquired 10 | . . . . 2 . . . . . 1 . . . 3 . . . . . . 1 . 3 . . Parts Repaired 2 | . . . . 1 . . . . . 1 . . . . . . . . . . . . . . . Time 100 | . . . . 32 . . . . . 68 . . . . . . . . . . . . . . . Parts Recycled . | . . . . . . . . . . . . . . . . . . . . . . . . . . Recycled Matter . | . . . . . . . . . . . . . . . . . . . . . . . . . . Retrieved Matter . | . . . . . . . . . . . . . . . . . . . . . . . . . . Retrieved Components 15 | . . 10 . . . . . 1 . . . 2 . 2 . . . . . . . . . . . Parts Scanalyzed . | . . . . . . . . . . . . . . . . . . . . . . . . . . Part Schematics Acquired . | . . . . . . . . . . . . . . . . . . . . . . . . . . Parts Damaged . | . . . . . . . . . . . . . . . . . . . . . . . . . . Bothacking | -11 -10 -9 -9 -8 -8 -7 -7 -7 -7 -6 -6 -6 -6 -5 -5 -4 -4 -3 -3 -3 -2 -2 -2 -2 -1 ------------ Run | Yrd Mat Mat Min Mat Gar Fac Gar Fac Gar Fac Was Fac Gar Fac Gar Fac Gar Res Tes Gar Res Gar Res Gar Acc Used RIF Installer 10 | . . . . . 1 . 1 . 1 . . . 1 . 1 . 2 . . 1 . 1 . 1 . Coupler Efficiency 2 | . . . . . . . . . . . . . 1 . . . . . . . . 1 . . . Hotswap 1 | . . . . . . . . . 1 . . . . . . . . . . . . . . . . Signal Jammer 1 | . . . . . . . . . . . . . . . 1 . . . . . . . . . . Robot Detection 1 | . . . . . . . . . . . . . . . . . . . . 1 . . . . . Structural Interface 1 | . . . . . . . 1 . . . . . . . . . . . . . . . . . . Program Shield 1 | . . . . . . . . . . . . . . . . . 1 . . . . . . . . Autooverride 1 | . . . . . . . . . . . . . . . . . 1 . . . . . . . . Autoassimilate 1 | . . . . . . . . . . . . . . . . . . . . . . . . 1 . Robots Hacked 178 | . . . . . . 2 . . . 1 . . 7 8 5 16 17 10 3 14 18 7 14 26 30 Non-combat 24 | . . . . . . 2 . . . . . . . 7 . 3 . 3 . . 3 1 3 1 1 Combat 154 | . . . . . . . . . . 1 . . 7 1 5 13 17 7 3 14 15 6 11 25 29 Autooverrided 27 | . . . . . . . . . . . . . . . . . . . . 2 1 4 5 7 8 Autoassimilated 7 | . . . . . . . . . . . . . . . . . . . . . . . . . 7 Robot Hacks Applied 190 | . . . . . . 3 . . . 1 . . 7 10 5 16 17 10 15 12 17 18 10 33 16 parse_system 7 | . . . . . . 1 . . . . . . . . . 1 1 1 . . 2 . . . 1 ignore_repairs 1 | . . . . . . . . . . . . . . . . . . . . . . . 1 . . drop_inventory 8 | . . . . . . 1 . . . . . . . 3 . 1 . 2 . . . . 1 . . ignore_parts 1 | . . . . . . . . . . . . . . 1 . . . . . . . . . . . purge_threat 29 | . . . . . . . . . . . . . . 2 . . . . . . . 14 . 13 . locate_traps 1 | . . . . . . . . . . . . . . . . . . . . . . . . 1 . reprogram_traps 1 | . . . . . . . . . . . . . . . . . . . . . . 1 . . . map_route 5 | . . . . . . . . . . . . . . 1 . 1 . . . . 1 . 1 . 1 locate_prototypes 1 | . . . . . . . . . . . . . . . . . . . 1 . . . . . . report_prototypes 3 | . . . . . . . . . . . . . . . . . . . 3 . . . . . . report_analyses 10 | . . . . . . . . . . . . . . . . . . . 10 . . . . . . find_garrison 1 | . . . . . . . . . . . . . . . . . . . . . . . 1 . . scatter_targeting 1 | . . . . . . . . . . . . . . . . . . . . . . . 1 . . disrupt_area 1 | . . . . . . . . . . . . . . . . . . . . . . 1 . . . amplify_resonance 17 | . . . . . . . . . . 1 . . 2 . . 2 2 . . 1 4 . . 3 2 disable_weapons 1 | . . . . . . . . . . . . . . . . . . . . 1 . . . . . overwrite_iff 12 | . . . . . . . . . . . . . 1 . 1 1 . . . . 1 . 2 1 5 formatsys_low 8 | . . . . . . 1 . . . . . . . 2 . . . 1 1 . 1 1 . 1 . formatsys_high 77 | . . . . . . . . . . . . . 4 1 4 9 14 6 . 10 7 1 2 14 5 formatsys_deep 5 | . . . . . . . . . . . . . . . . 1 . . . . 1 . 1 . 2 Relay Couplers Released 142 | . . . . . 15 . 5 . 8 . . . 13 . 16 3 18 2 . 21 . 21 . 20 . Machine Destruction 132 | . . . . . 15 . 5 . 5 . . . 13 . 16 . 18 2 . 21 . 17 . 20 . Programmers 10 | . . . . . . . . . 3 . . . . . . 3 . . . . . 4 . . . Attached 53 | . . . . . . 1 . . 1 . . . 2 2 7 1 3 1 1 5 2 10 2 10 5 Fabnet Peak Effective % . | . . . . . . . . . . . . . . . . . . . . . . . . . . Robots Rewired 14 | . . . . . . . . . 2 . . . . . . . 3 . . 1 . 3 . 5 . Allies Hacked 7 | . . . . . . . . . . . . . . 3 . 1 . 1 . . 1 . 1 . . Hacks Repelled . | . . . . . . . . . . . . . . . . . . . . . . . . . . Allies | -11 -10 -9 -9 -8 -8 -7 -7 -7 -7 -6 -6 -6 -6 -5 -5 -4 -4 -3 -3 -3 -2 -2 -2 -2 -1 -------- Run | Yrd Mat Mat Min Mat Gar Fac Gar Fac Gar Fac Was Fac Gar Fac Gar Fac Gar Res Tes Gar Res Gar Res Gar Acc Total Allies 180 | . . . 3 . 2 1 2 . 2 . . . 5 3 7 16 17 7 2 15 13 13 11 30 31 Largest Group 17 | . . . 3 3 2 1 2 1 2 . . . 4 6 3 9 13 17 1 9 13 6 4 17 17 Highest-Rated Group 1195 | . . . 40 40 56 23 56 25 70 . . . 119 182 175 448 603 915 49 550 780 338 315 1195 1055 Highest-Rated Ally 183 | . . . 16 16 31 23 31 25 39 . . . 32 49 119 64 64 142 49 119 183 89 148 148 148 Total Orders 24 | . . . . . . 1 6 . . . . . . 1 . . 5 1 . . 1 4 . 5 . STAY 8 | . . . . . . . 3 . . . . . . . . . 2 . . . . 2 . 1 . ROAM 2 | . . . . . . . . . . . . . . . . . . . . . . . . 2 . FOLLOW 7 | . . . . . . . . . . . . . . . . . 3 . . . . 2 . 2 . AID 7 | . . . . . . 1 3 . . . . . . 1 . . . 1 . . 1 . . . . Ally Attacks 1131 | . . . . 46 18 . 11 . 17 . . . 15 70 37 62 65 90 4 72 56 132 85 155 196 Total Damage 41868 | . . . . 542 422 . 287 . 206 . . . 249 1795 1448 1826 1788 3343 . 2397 2721 2879 2462 5928 13575 Kills 223 | . . . . 8 1 . 3 . 2 . . . 2 14 6 11 14 12 . 15 11 15 15 35 59 Allies Corrupted 19 | . . . . . . . . . . . . . . . . . 1 3 . . 3 3 1 2 6 Allies Melted 2 | . . . . . 1 . . . . . . . . . 1 . . . . . . . . . . Intel | -11 -10 -9 -9 -8 -8 -7 -7 -7 -7 -6 -6 -6 -6 -5 -5 -4 -4 -3 -3 -3 -2 -2 -2 -2 -1 ------- Run | Yrd Mat Mat Min Mat Gar Fac Gar Fac Gar Fac Was Fac Gar Fac Gar Fac Gar Res Tes Gar Res Gar Res Gar Acc Active Infowar (turns) 7779 | . . . . . . . . . . . . . . . . . . . 668 1889 709 1606 635 1705 567 Optics 7257 | . . . . . . . . . . . . . . . . . . . 146 1889 709 1606 635 1705 567 Sensors 934 | . . . . . . . . . . . . . . . . . . . 668 1 257 8 . . . Cloaking 2 | . . . . . . . . . . . . . . . . . . . . 2 . . . . . Spoofing 2 | . . . . . . . . . . . . . . . . . . . . . . 2 . . . Jamming 1 | . . . . . . . . . . . . . . . . . . . . . . . 1 . . Robot Analysis Total 1 | . . . . 1 . . . . . . . . . . . . . . . . . . . . . Derelict Logs Recovered 1 | . . . 1 . . . . . . . . . . . . . . . . . . . . . . Drone Launches . | . . . . . . . . . . . . . . . . . . . . . . . . . . Drone Recoveries . | . . . . . . . . . . . . . . . . . . . . . . . . . . Exploration | -11 -10 -9 -9 -8 -8 -7 -7 -7 -7 -6 -6 -6 -6 -5 -5 -4 -4 -3 -3 -3 -2 -2 -2 -2 -1 ------------- Run | Yrd Mat Mat Min Mat Gar Fac Gar Fac Gar Fac Was Fac Gar Fac Gar Fac Gar Res Tes Gar Res Gar Res Gar Acc Turns Passed 29434 | 49 872 1216 1294 559 1945 1612 1987 1057 1602 572 132 492 1071 1319 2202 870 1729 772 835 1889 825 1606 635 1705 587 Spaces Moved 17961 | 34 490 573 708 236 1106 879 1182 659 803 275 112 302 740 831 1564 511 1108 441 564 1263 530 1189 365 1108 388 Core 73 | 11 . . . . . . . . . . . . . . 25 . . . . . . . . . 37 Treads 3109 | . 64 573 708 236 1106 420 . . . . . . . . 2 . . . . . . . . . . Legs 8820 | 23 426 . . . . . . . . . . . . . 941 511 1108 441 564 1263 530 1189 365 1108 351 Wheels 5498 | . . . . . . 459 1182 659 803 275 112 302 740 831 135 . . . . . . . . . . Hover . | . . . . . . . . . . . . . . . . . . . . . . . . . . Flight 461 | . . . . . . . . . . . . . . . 461 . . . . . . . . . . Fastest Speed 27 | 50 120 160 160 160 160 98 120 130 130 150 90 90 105 120 27 120 120 120 107 107 101 101 98 97 50 Average Speed 125 | 97 126 160 160 160 160 138 134 141 158 157 116 108 119 120 102 120 121 128 116 111 107 104 99 97 102 Slowest Speed 900 | 120 190 160 160 160 160 240 135 175 175 165 150 120 120 120 900 120 126 196 180 183 173 105 105 98 237 Overloaded Moves . | . . . . . . . . . . . . . . . . . . . . . . . . . . Propulsion Burnouts . | . . . . . . . . . . . . . . . . . . . . . . . . . . Robots Hopped 4 | . . . . . 4 . . . . . . . . . . . . . . . . . . . . Potential Cave-ins 4 | . . . . . . . . . . . . . . . . . . . . . . . . . 4 Cave-ins Triggered . | . . . . . . . . . . . . . . . . . . . . . . . . . . Exploration Rate (%) 54 | 3 78 47 96 27 96 30 93 18 97 10 84 10 95 26 97 19 92 10 43 98 17 97 13 97 13 Regions Visited 25 Branch Regions 2 Pre-discovered Areas . | . . . . . . . . . . . . . . . . . . . . . . . . . . Known Exits Taken 9 | . . . . 1 . 1 . 1 . . . 1 . 1 . 1 . . 1 . 1 . 1 . . Unknown Exits Taken 5 | 1 1 1 1 . . . . . . . . . . . . . . 1 . . . . . . . Scrap Searched 3 | . . . 3 . . . . . . . . . . . . . . . . . . . . . . Spaces Dug 193 | . . 12 27 21 17 9 6 18 . . . 2 . 1 18 5 2 31 5 . 3 2 2 10 2 Terrain Destroyed 1133 | . . 48 77 40 25 45 49 94 38 7 1 37 7 102 92 48 15 133 8 27 15 142 32 29 22 Melee . | . . . . . . . . . . . . . . . . . . . . . . . . . . Projectile 306 | . . 8 3 2 . 23 17 17 13 7 1 22 7 17 14 9 15 8 8 4 15 24 32 29 11 AOE 827 | . . 40 74 38 25 22 32 77 25 . . 15 . 85 78 39 . 125 . 23 . 118 . . 11 Terrain Rammed . | . . . . . . . . . . . . . . . . . . . . . . . . . . Walls Destroyed . | . . . . . . . . . . . . . . . . . . . . . . . . . . Machines Disabled . | . . . . . . . . . . . . . . . . . . . . . . . . . . Actions | -11 -10 -9 -9 -8 -8 -7 -7 -7 -7 -6 -6 -6 -6 -5 -5 -4 -4 -3 -3 -3 -2 -2 -2 -2 -1 --------- Run | Yrd Mat Mat Min Mat Gar Fac Gar Fac Gar Fac Was Fac Gar Fac Gar Fac Gar Res Tes Gar Res Gar Res Gar Acc Total 22978 | 48 636 767 803 344 1222 1163 1466 730 1051 391 114 430 895 1023 1986 719 1396 591 713 1653 683 1439 536 1654 525 Wait 2088 | . 58 67 34 50 38 106 83 18 71 68 . 73 52 71 100 135 144 72 81 169 51 76 64 358 49 Move 17937 | 33 489 572 707 236 1097 879 1181 659 802 275 111 302 739 831 1563 511 1107 440 564 1262 530 1188 364 1107 388 Hop 4 | . . . . . 4 . . . . . . . . . . . . . . . . . . . . Pick Up 267 | 9 5 19 3 4 12 21 16 . 12 1 . 13 16 5 41 6 15 2 6 20 1 20 3 17 . Fast Attach 177 | 3 1 7 2 3 4 7 8 2 2 8 . 2 3 3 29 4 7 3 10 18 9 14 15 13 . Attach 120 | 3 1 4 1 2 3 5 3 . 11 1 1 2 2 4 11 4 9 10 3 7 6 8 2 4 13 Detach 31 | . . . . . . . 2 . 1 1 . 1 . 1 3 2 4 5 . 5 1 4 . . 1 Swap 149 | . 7 10 8 10 8 19 9 2 1 . . 4 2 3 12 . 6 3 2 12 5 9 6 11 . Drop 274 | . 4 20 5 6 17 19 29 . 4 6 2 2 15 6 34 4 15 1 3 33 5 15 11 16 2 Fire 1546 | . 62 65 35 33 39 81 78 47 66 23 . 31 38 98 125 53 80 54 41 100 72 93 68 104 60 Melee . | . . . . . . . . . . . . . . . . . . . . . . . . . . Ram 10 | . . . . . . . 1 2 7 . . . . . . . . . . . . . . . . Kick 35 | . 9 . . . . . . . . . . . . . . . 3 . 3 15 . . 1 4 . Crush 12 | . . 3 4 . . 2 . . . . . . . . 3 . . . . . . . . . . Escape Stasis 281 | . . . . . . 24 56 . 64 8 . . 27 . 63 . 2 . . 10 . . . 16 11 Rewire 43 | . . . . . . . . . 10 . . . 1 1 2 . 4 1 . 2 3 12 2 4 1 Trap 4 | . . . 4 . . . . . . . . . . . . . . . . . . . . . . Miscellaneous . | . . . . . . . . . . . . . . . . . . . . . . . . . . Route ------- -11/Scrapyard -10/Materials (discovered 4 exits: *Mat x3 / [*Min]) -9/Materials (discovered 2 exits: *Mat / *Min) -9/Mines -8/Materials -8/Garrison (discovered 3 exits: *Fac x3) -7/Factory (discovered 4 exits: *Fac / [*Low x2] / Gar) -7/Garrison (discovered 3 exits: *Fac x3) -7/Factory -7/Garrison (discovered 3 exits: *Fac x3) -6/Factory -6/Waste -6/Factory -6/Garrison (discovered 3 exits: *Fac x3) -5/Factory -5/Garrison (discovered 3 exits: *Fac x3) -4/Factory (discovered 4 exits: Res / [*Upp x2] / Gar) -4/Garrison (discovered 3 exits: *Res x3) -3/Research (discovered 2 exits: *Res / *Tes) -3/Testing -3/Garrison (discovered 3 exits: *Res x3) -2/Research -2/Garrison (discovered 4 exits: *Acc x3 / *Res) -2/Research (discovered 2 exits: *Acc / Gar) -2/Garrison (discovered 3 exits: *Acc x3) -1/Access History --------- Turn | Location | Event 11 | -11/Scrapyard | Discovered new exit (range 16) 50 | -11/Scrapyard | Entered Materials 298 | -10/Materials | Discovered new exit (range 16) 309 | -10/Materials | Build established: Mutant 406 | -10/Materials | Discovered new exit (range 8) 504 | -10/Materials | Discovered new exit (range 11) 728 | -10/Materials | Core integrity fell below 50% 750 | -10/Materials | Derelicts attacked the area 787 | -10/Materials | Discovered new exit (range 11) 922 | -10/Materials | Entered another Materials area 922 | -9/Materials | Evolved 2 slots: Propulsion x1, Utility x1 1393 | -9/Materials | Discovered new exit (range 16) 1871 | -9/Materials | Discovered new exit (range 9) 2122 | -9/Materials | First assault squad dispatched 2138 | -9/Materials | Entered Mines 2171 | -9/Mines | Destroyed 8 combat bots 2196 | -9/Mines | Learned 2 Materials zone layouts 2332 | -9/Mines | Received a Rocket Launcher from a helpful Derelict 2442 | -9/Mines | Found a hidden stash of uninstalled traps 2481 | -9/Mines | Assembled infested the area 2571 | -9/Mines | Build established: Scavenger-Mutant 2908 | -9/Mines | Discovered new exit (range 10) 3207 | -9/Mines | Met a Derelict who couldn't figure out how to use a Trap Extractor 3267 | -9/Mines | Assisted by bots powering up and referring to "LRC-V3" 3432 | -9/Mines | Entered Materials 3432 | -8/Materials | Accompanied by 3 allies 3432 | -8/Materials | Evolved 2 slots: Utility x1, Weapon x1 3485 | -8/Materials | Central database locked down 3950 | -8/Materials | Repaired Imp. Light Cannon 3991 | -8/Materials | Identified exit to Garrison 3991 | -8/Materials | Entered Garrison 4067 | -8/Garrison | Phase Generator disabled 4106 | -8/Garrison | Installed Relay Interface Framework 4139 | -8/Garrison | Garrison Relay disabled 4260 | -8/Garrison | Build established: Tank 4373 | -8/Garrison | Triggered checkpoint 4452 | -8/Garrison | Discovered new exit (range 13) 4671 | -8/Garrison | Rescued a captive Derelict 4673 | -8/Garrison | Rescued a captive Derelict 5005 | -8/Garrison | Triggered checkpoint 5086 | -8/Garrison | Garrison Relay disabled 5088 | -8/Garrison | Garrison Relay disabled 5402 | -8/Garrison | Triggered checkpoint 5513 | -8/Garrison | Discovered new exit (range 13) 5555 | -8/Garrison | Build established: Scavenger-Tank 5659 | -8/Garrison | Triggered checkpoint 5786 | -8/Garrison | Discovered new exit (range 12) 5871 | -8/Garrison | Garrison Relay disabled 5936 | -8/Garrison | Entered Factory 5936 | -7/Factory | Evolved 2 slots: Utility x2 6586 | -7/Factory | Discovered new exit (range 8) 6771 | -7/Factory | Discovered new exit (range 5) 6864 | -7/Factory | Discovered new exit (range 11) 7070 | -7/Factory | Build established: Bothacker-Gunner 7548 | -7/Factory | Identified exit to Garrison 7548 | -7/Factory | Entered Garrison 7548 | -7/Garrison | Accompanied by 1 ally 7604 | -7/Garrison | Build established: Bothacker-Tank 7628 | -7/Garrison | Triggered checkpoint 7649 | -7/Garrison | Garrison Relay disabled 7834 | -7/Garrison | Triggered checkpoint 8120 | -7/Garrison | Triggered checkpoint 8144 | -7/Garrison | Triggered checkpoint 8215 | -7/Garrison | Expanded RIF knowledge: Structural Interface 8301 | -7/Garrison | Spotted B-75 Beast 8350 | -7/Garrison | Discovered new exit (range 5) 8388 | -7/Garrison | Triggered checkpoint 8651 | -7/Garrison | Triggered checkpoint 8751 | -7/Garrison | Build established: Bothacker-Gunner 8770 | -7/Garrison | Discovered new exit (range 11) 8974 | -7/Garrison | Discovered new exit (range 13) 9079 | -7/Garrison | Rescued a captive Derelict 9081 | -7/Garrison | Rescued a captive Derelict 9535 | -7/Garrison | Entered Factory 9535 | -7/Factory | Accompanied by 1 ally 10017 | -7/Factory | Garrison activated, responded to threat 10332 | -7/Factory | Destroyed 8 combat bots 10557 | -7/Factory | Cargo convoy interrupted 10585 | -7/Factory | Core integrity fell below 50% 10592 | -7/Factory | Identified exit to Garrison 10592 | -7/Factory | Entered Garrison 10612 | -7/Garrison | Lost 3 parts (1p1u1w) 10770 | -7/Garrison | Triggered checkpoint 10923 | -7/Garrison | Triggered checkpoint 10923 | -7/Garrison | Triggered checkpoint 11245 | -7/Garrison | Build established: Bothacker-Mutant 11382 | -7/Garrison | Discovered new exit (range 9) 11454 | -7/Garrison | Triggered checkpoint 11543 | -7/Garrison | Garrison Relay disabled 11720 | -7/Garrison | Discovered new exit (range 15) 11750 | -7/Garrison | Expanded RIF knowledge: Hotswap 11950 | -7/Garrison | Triggered checkpoint 12039 | -7/Garrison | Discovered new exit (range 15) 12053 | -7/Garrison | Build established: Bothacker-Tank 12125 | -7/Garrison | Discovered new exit (range 36) 12125 | -7/Garrison | Discovered new exit (range 32) 12125 | -7/Garrison | Discovered new exit (range 54) 12136 | -7/Garrison | Triggered checkpoint 12194 | -7/Garrison | Entered Factory 12194 | -6/Factory | Evolved 2 slots: Propulsion x1, Utility x1 12657 | -6/Factory | Repaired Hvy. Linear Accelerator 12766 | -6/Factory | Sucked down chute 12766 | -6/Factory | Entered Waste 12781 | -6/Waste | EMP discharged 12781 | -6/Waste | System corruption reached 10% 12786 | -6/Waste | Spotted C-40 Crusher 12815 | -6/Waste | Spotted C-40 Crusher 12816 | -6/Waste | Spotted C-40 Crusher 12843 | -6/Waste | Spotted C-40 Crusher 12855 | -6/Waste | Crushed by Compactor (1 part destroyed) 12868 | -6/Waste | Spotted C-40 Crusher 12881 | -6/Waste | EMP discharged 12881 | -6/Waste | Spotted C-40 Crusher 12883 | -6/Waste | Discovered new exit (range 12) 12898 | -6/Waste | Entered Factory 13158 | -6/Factory | Build established: Tank 13390 | -6/Factory | Identified exit to Garrison 13390 | -6/Factory | Entered Garrison 13540 | -6/Garrison | Triggered checkpoint 13673 | -6/Garrison | Garrison Relay disabled 13715 | -6/Garrison | Learned Factory security intel 13750 | -6/Garrison | Triggered checkpoint 13784 | -6/Garrison | Triggered checkpoint 13901 | -6/Garrison | Discovered new exit (range 12) 13953 | -6/Garrison | Garrison Relay disabled 13986 | -6/Garrison | Build established: Bothacker-Tank 14092 | -6/Garrison | Garrison Relay disabled 14134 | -6/Garrison | Triggered checkpoint 14192 | -6/Garrison | Discovered new exit (range 8) 14231 | -6/Garrison | Found Relay Coupler [Proto] 14312 | -6/Garrison | Triggered checkpoint 14389 | -6/Garrison | Expanded RIF knowledge: Coupler Efficiency 14399 | -6/Garrison | Discovered new exit (range 12) 14402 | -6/Garrison | Triggered checkpoint 14413 | -6/Garrison | Garrison Relay disabled 14461 | -6/Garrison | Entered Factory 14461 | -5/Factory | Accompanied by 4 allies 14461 | -5/Factory | Evolved 2 slots: Utility x2 14670 | -5/Factory | Build established: Botlord-Tank 14688 | -5/Factory | Lost 3 allies 15361 | -5/Factory | First assault squad dispatched 15717 | -5/Factory | Build established: Bothacker-Tank 15780 | -5/Factory | Identified exit to Garrison 15780 | -5/Factory | Entered Garrison 15829 | -5/Garrison | Spotted B-75 Beast 15881 | -5/Garrison | Destroyed B-75 Beast 15887 | -5/Garrison | Lost 4 parts (1p1n1u1w) 15987 | -5/Garrison | Found Relay Coupler [Proto] 16330 | -5/Garrison | Spotted Executioner 16330 | -5/Garrison | Spotted Executioner 16420 | -5/Garrison | Assimilated Executioner with formatsys_high 16427 | -5/Garrison | Allies destroyed Executioner 16440 | -5/Garrison | Found Prototype Device 16507 | -5/Garrison | Spotted B-75 Beast 16514 | -5/Garrison | Triggered checkpoint 16522 | -5/Garrison | Allies destroyed B-75 Beast 16526 | -5/Garrison | Triggered checkpoint 16530 | -5/Garrison | Triggered checkpoint 16534 | -5/Garrison | Triggered checkpoint 16549 | -5/Garrison | Destroyed 7 combat bots 16574 | -5/Garrison | Lost 3 allies 16586 | -5/Garrison | Lost 7 parts (1p2n1u3w) 16757 | -5/Garrison | Found Prototype Processor 16757 | -5/Garrison | Identified Exp. Targeting Computer 16760 | -5/Garrison | Identified Adv. Kinecellerator 16761 | -5/Garrison | Found Prototype Processor 16798 | -5/Garrison | Triggered checkpoint 16843 | -5/Garrison | Garrison Relay disabled 16846 | -5/Garrison | Garrison Relay disabled 17059 | -5/Garrison | Expanded RIF knowledge: Signal Jamming 17105 | -5/Garrison | Build established: Scavenger-Mutant 17236 | -5/Garrison | Found embedded Infiltrators 17250 | -5/Garrison | Discovered new exit (range 12) 17361 | -5/Garrison | Core integrity fell below 50% 17374 | -5/Garrison | Identified Exp. Core Analyzer 17407 | -5/Garrison | Lost 3 parts (2n1u) 17490 | -5/Garrison | Discovered new exit (range 7) 17528 | -5/Garrison | Garrison Relay disabled 17544 | -5/Garrison | Triggered checkpoint 17576 | -5/Garrison | Garrison Relay disabled 17722 | -5/Garrison | Triggered checkpoint 17850 | -5/Garrison | Discovered new exit (range 12) 17903 | -5/Garrison | Build established: Botlord-Gunner 17938 | -5/Garrison | Found Fusion Bomb Launcher 17982 | -5/Garrison | Entered Factory 17982 | -4/Factory | Accompanied by 3 allies 17982 | -4/Factory | Evolved 2 slots: Utility x2 18145 | -4/Factory | Fabricated Biometal Heavy Treads (x1) 18232 | -4/Factory | First assault squad dispatched 18264 | -4/Factory | Spotted B-86 Titan 18401 | -4/Factory | Assimilated Heavy ARC 7a with formatsys_deep 18436 | -4/Factory | Lost 5 allies 18481 | -4/Factory | Discovered new exit (range 9) 18600 | -4/Factory | Discovered new exit (range 50) 18726 | -4/Factory | Discovered new exit (range 11) 18742 | -4/Factory | Found Exp. System Shield 18765 | -4/Factory | Garrison activated, responded to threat 18819 | -4/Factory | High security lockdown imminent 18829 | -4/Factory | Identified exit to Garrison 18852 | -4/Factory | Entered Garrison 18852 | -4/Garrison | Accompanied by 9 allies 18940 | -4/Garrison | Lost 5 allies 19094 | -4/Garrison | Triggered checkpoint 19130 | -4/Garrison | Expanded RIF knowledge: Program Shield 19162 | -4/Garrison | Garrison Relay disabled 19263 | -4/Garrison | Spotted B-86 Titan 19274 | -4/Garrison | Triggered checkpoint 19289 | -4/Garrison | Triggered checkpoint 19300 | -4/Garrison | Allies destroyed B-86 Titan 19352 | -4/Garrison | Triggered checkpoint 19379 | -4/Garrison | Garrison Relay disabled 19413 | -4/Garrison | Discovered new exit (range 12) 19470 | -4/Garrison | System corruption reached 10% 19548 | -4/Garrison | Garrison Relay disabled 19626 | -4/Garrison | Triggered checkpoint 19671 | -4/Garrison | Lost 5 allies 19714 | -4/Garrison | Garrison Relay disabled 19734 | -4/Garrison | Triggered checkpoint 19798 | -4/Garrison | Discovered new exit (range 10) 19894 | -4/Garrison | Triggered checkpoint 19904 | -4/Garrison | Garrison Relay disabled 20010 | -4/Garrison | Triggered checkpoint 20015 | -4/Garrison | Discovered new exit (range 13) 20034 | -4/Garrison | Expanded RIF knowledge: Autooverride 20331 | -4/Garrison | Build established: Botlord-Mutant 20581 | -4/Garrison | Entered Research 20581 | -3/Research | Accompanied by 12 allies 20581 | -3/Research | Evolved 2 slots: Power x1, Utility x1 20753 | -3/Research | Spotted B-86 Titan 20796 | -3/Research | Allies destroyed B-86 Titan 20831 | -3/Research | First assault squad dispatched 20993 | -3/Research | Discovered new exit (range 5) 21064 | -3/Research | Garrison activated, responded to threat 21090 | -3/Research | System corruption reached 10% 21126 | -3/Research | Lost 7 parts (7u) 21138 | -3/Research | Lost 17 allies 21138 | -3/Research | System corruption reached 30% 21183 | -3/Research | Destroyed 12 combat bots 21187 | -3/Research | Lost 5 parts (2p2n1u) 21284 | -3/Research | Discovered new exit (range 14) 21334 | -3/Research | Spotted B-86 Titan 21353 | -3/Research | Entered Testing 21623 | -3/Testing | Found Exp. Sensor Array 21633 | -3/Testing | Found Centrium Heavy Armor Plating 21694 | -3/Testing | Protovariant out of control (PX-UMXOW0T2TJ) 21704 | -3/Testing | Found System Mapper 21940 | -3/Testing | Found Prototype Energy Gun 22038 | -3/Testing | Found Prototype Device 22038 | -3/Testing | Identified Exp. Thermal Shield 22042 | -3/Testing | Found Prototype Processor 22042 | -3/Testing | Identified Spectral Analyzer 22185 | -3/Testing | Identified exit to Garrison 22188 | -3/Testing | Entered Garrison 22188 | -3/Garrison | Accompanied by 1 ally 22190 | -3/Garrison | Identified Tachyon Dispersion Ray 22318 | -3/Garrison | Triggered checkpoint 22346 | -3/Garrison | Rewired Executioner 22371 | -3/Garrison | Garrison Relay disabled 22539 | -3/Garrison | Triggered checkpoint 22551 | -3/Garrison | Spotted B-86 Titan 22558 | -3/Garrison | Allies destroyed B-86 Titan 22559 | -3/Garrison | Triggered checkpoint 22559 | -3/Garrison | Triggered checkpoint 22576 | -3/Garrison | Triggered checkpoint 22591 | -3/Garrison | Destroyed 13 combat bots 22597 | -3/Garrison | Lost 4 allies 22614 | -3/Garrison | Found Exp. Targeting Computer 22753 | -3/Garrison | Discovered new exit (range 11) 22760 | -3/Garrison | Triggered checkpoint 22801 | -3/Garrison | Expanded RIF knowledge: Robot Detection 22812 | -3/Garrison | Garrison Relay disabled 22961 | -3/Garrison | Garrison Relay disabled 22996 | -3/Garrison | Discovered new exit (range 13) 23106 | -3/Garrison | Triggered checkpoint 23239 | -3/Garrison | Discovered new exit (range 12) 23278 | -3/Garrison | Triggered checkpoint 23300 | -3/Garrison | Garrison Relay disabled 23631 | -3/Garrison | Build established: Botlord-Tank 23672 | -3/Garrison | Rescued a captive Derelict 23676 | -3/Garrison | Rescued a captive Derelict 23848 | -3/Garrison | Triggered checkpoint 23886 | -3/Garrison | Garrison Relay disabled 24077 | -3/Garrison | Entered Research 24077 | -2/Research | Accompanied by 9 allies 24077 | -2/Research | Evolved 2 slots: Propulsion x1, Utility x1 24233 | -2/Research | Unchained authorized (CL-0N3) 24327 | -2/Research | First assault squad dispatched 24422 | -2/Research | Lost 12 allies 24505 | -2/Research | K-01 Serf reconstituted as Combat Programmer 24506 | -2/Research | Spotted Combat Programmer 24519 | -2/Research | Destroyed Combat Programmer 24519 | -2/Research | Combat Programmer reconstituted as CL-0N3 24552 | -2/Research | Lost 3 allies 24715 | -2/Research | Found Prototype Launcher 24715 | -2/Research | Identified Point Singularity Launcher 24739 | -2/Research | Assimilated ARC 9a with formatsys_deep 24758 | -2/Research | Build established: Botlord-Gunner 24846 | -2/Research | Spotted Combat Programmer 24865 | -2/Research | Destroyed Combat Programmer 24865 | -2/Research | Combat Programmer reconstituted as CL-0N3 24887 | -2/Research | Lost 4 allies 24902 | -2/Research | Identified exit to Garrison 24902 | -2/Research | Entered Garrison 24915 | -2/Garrison | Lost 3 parts (1p1n1w) 24924 | -2/Garrison | Triggered checkpoint 24939 | -2/Garrison | Found embedded Infiltrators 24988 | -2/Garrison | Garrison Relay disabled 25017 | -2/Garrison | Rescued a captive Derelict 25021 | -2/Garrison | Rescued a captive Derelict 25056 | -2/Garrison | Heavy support dispatched to Access 25100 | -2/Garrison | Triggered checkpoint 25110 | -2/Garrison | Triggered checkpoint 25160 | -2/Garrison | Lost 5 allies 25167 | -2/Garrison | Lost 4 parts (1n1u2w) 25390 | -2/Garrison | Spotted Executioner 25390 | -2/Garrison | Spotted Executioner 25412 | -2/Garrison | Expanded RIF knowledge: Coupler Efficiency 25416 | -2/Garrison | Discovered new exit (range 12) 25432 | -2/Garrison | Heavy support dispatched to Access 25468 | -2/Garrison | Identified exit to Access 25490 | -2/Garrison | Triggered checkpoint 25518 | -2/Garrison | Build established: Scavenger-Mutant 25537 | -2/Garrison | Discovered new exit (range 3) 25538 | -2/Garrison | Identified exit to Research 25594 | -2/Garrison | Triggered checkpoint 25726 | -2/Garrison | Triggered checkpoint 25726 | -2/Garrison | Garrison Relay disabled 25756 | -2/Garrison | Discovered exit to Access (range 5) 25844 | -2/Garrison | Spotted B-90 Cyclops 25896 | -2/Garrison | Garrison Relay disabled 26042 | -2/Garrison | Garrison Relay disabled 26073 | -2/Garrison | Discovered exit to Access (range 8) 26090 | -2/Garrison | H-XX Assembler disabled 26115 | -2/Garrison | System corruption reached 10% 26295 | -2/Garrison | Phase Generator disabled 26364 | -2/Garrison | Lost 3 allies 26508 | -2/Garrison | Entered Research 26508 | -2/Research | Accompanied by 1 ally 26609 | -2/Research | Build established: Botlord-Mutant 26815 | -2/Research | Spotted B-90 Cyclops 26882 | -2/Research | Assimilated Cyclops 9a with formatsys_high 26914 | -2/Research | Build established: Botlord-Tank 27008 | -2/Research | First assault squad dispatched 27052 | -2/Research | Assimilated Heavy ARC 9a with formatsys_deep 27120 | -2/Research | Discovered exit to Access (range 20) 27122 | -2/Research | Identified exit to Garrison 27143 | -2/Research | Entered Garrison 27143 | -2/Garrison | Accompanied by 3 allies 27156 | -2/Garrison | Spotted B-90 Cyclops 27163 | -2/Garrison | Rewired B-75 Beast 27213 | -2/Garrison | Assimilated Cyclops 9b with formatsys_high 27313 | -2/Garrison | Triggered checkpoint 27314 | -2/Garrison | Core integrity fell below 50% 27320 | -2/Garrison | Garrison Relay disabled 27367 | -2/Garrison | Triggered checkpoint 27405 | -2/Garrison | Triggered checkpoint 27416 | -2/Garrison | Triggered checkpoint 27455 | -2/Garrison | Triggered checkpoint 27508 | -2/Garrison | Garrison Relay disabled 27537 | -2/Garrison | Discovered exit to Access (range 19) 27557 | -2/Garrison | Triggered checkpoint 27563 | -2/Garrison | Q-Series assembled to engage unique threat in Access 27589 | -2/Garrison | QS Assembler disabled 27620 | -2/Garrison | Found Prototype Device 27620 | -2/Garrison | Identified Adv. EM Shield 27634 | -2/Garrison | Found Exp. Thermal Shield 27781 | -2/Garrison | Triggered checkpoint 27862 | -2/Garrison | Rescued a captive Derelict 27863 | -2/Garrison | Rescued a captive Derelict 27870 | -2/Garrison | Discovered exit to Access (range 14) 27895 | -2/Garrison | Triggered checkpoint 27917 | -2/Garrison | Garrison Relay disabled 27928 | -2/Garrison | Lost 3 allies 27929 | -2/Garrison | Garrison Relay disabled 28127 | -2/Garrison | Build established: Botlord-Mutant 28359 | -2/Garrison | Triggered checkpoint 28371 | -2/Garrison | Expanded RIF knowledge: Autoassimilate 28423 | -2/Garrison | Garrison Relay disabled 28521 | -2/Garrison | Lost 7 allies 28617 | -2/Garrison | Build established: Botlord-Tank 28716 | -2/Garrison | Discovered exit to Access (range 17) 28848 | -2/Garrison | Entered Access 28848 | -1/Access | Accompanied by 15 allies 28848 | -1/Access | Evolved 2 slots: Utility x1, Weapon x1 28902 | -1/Access | High security lockdown imminent 28930 | -1/Access | Lost 4 allies 28982 | -1/Access | High security lockdown engaged 29141 | -1/Access | Lost 4 allies 29218 | -1/Access | Assimilated Heavy ARC 10a with formatsys_deep 29262 | -1/Access | Lost 5 parts (1p2n2u) 29274 | -1/Access | Lost 24 allies 29318 | -1/Access | Spotted Striker 29318 | -1/Access | Spotted Striker 29322 | -1/Access | Allies destroyed Striker 29334 | -1/Access | Spotted Investigator 29338 | -1/Access | Allies destroyed Investigator 29346 | -1/Access | Assimilated Heavy ARC 10b with formatsys_deep 29385 | -1/Access | Lost 4 allies 29393 | -1/Access | Spotted Striker 29394 | -1/Access | Spotted Striker 29398 | -1/Access | Allies destroyed Striker 29402 | -1/Access | Allies destroyed Striker 29424 | -1/Access | Core integrity fell below 50% 29429 | -1/Access | Spotted Executioner 29431 | -1/Access | Core integrity fell below 20% 29433 | -1/Access | System corruption reached 10% 29435 | -1/Access | Destroyed by X-87 Electro with Compact HERF Cannon Last Messages --------------- 29420_ The unstable cave ceiling collapses. 29424_ Relay Coupler [NC] destroyed. 29425_ The unstable cave ceiling collapses. 29427_ D-83 Annihilator destroyed. 29428_ The unstable cave ceiling collapses. 29428_ C-45 Heavy ARC bursts open, deploying its payload. 29428_ P-80 Master unfolds itself. 29428_ Executioner unfolds itself. 29428_ M-36 Artificer unfolds itself. 29428_ Slug penetrates Wall. 29429_ The unstable cave ceiling collapses. 29430_ System corrupted: Matter fused (-5). 29430_ The unstable cave ceiling collapses. 29430_ Smartbomb Launcher destroyed. 29431_ The unstable cave ceiling collapses. 29432_ Relay Coupler [Sentry] destroyed. 29434_ The unstable cave ceiling collapses. 29434_ Relay Coupler [Specialist] destroyed. 29435_ Relay Coupler [Grunt] destroyed. Map ----- +----------------------------------------------------+ | %#??# ""#?????????????????????????????????? | | #??# ""#?????????????????????????????????? | | #### ""#?????????????????????????????????? | | # ""#?????????????????????????????????? | | # T"#????????????? ??????????????????? | | # ""#????????????? ??????????????????? | | + ""#????????????? ??????????????????? | | ""% " ""#????????????# "??????????????????? | | """ # ""#????????????#"%#?????????????????? | | """ # "#????????????# "#?????????????????? | | % # #????????????# #?????????????????? | | [ # #????????????# "?????????????????? | | *%%[ " #????????????# #?????????????????? | | !!= " #????????????# #?????????????????? | | " #????????????# #?????????????????? | | = ##+###########????????# #?????????????????? | | [ # #????????# #######"??????????? | | % # #????????# """T""""??????????? | | = ! # " #????????# """ """"??????????? | | *% # """ #?????####% x "??????????? | | / """ #????## =x "??????????? | | # " #????# "??????????? | | # #????# "??????????? | | # #???## =% "??????????? | | ####### #???# # * "??????????? | | ??????# !!= ] #???# @ "??????????? | | ??????# !!= = #???# # # "??????????? | | ??????# !== #??## ### ## "##????????? | | ??????##############?## ### # # #????????? | | ?????????????????????# # # #???????? | | ?????????????????????# # ## #???##### | | ####???????????####### # ! # # #???# | | ????????????# "" ] # # ##???# | | ???????????## "" # ######### | | " ???????????# """"" # # | | "? ??????????## " # | | ""???????????# ##### ####### # | | """? #???????## # ##?????# # | | "" ##???????# # ###??????# #[ | | #???????# #??????# /= | | #???????## # # ######## #= | | #???????# # | | #???????# # # | | #???????## % % ####+########## | | ##########????## ##### #### # # | | #?????#### ### ## # # # | | #??????### # # # ## ! # | | ######## # # # | | + =[!%*=% # * # | | #######[# # # ## " # | +----------------------------------------------------+ Best States ------------- Heat Dissipation 108 Energy Generation 45 Energy Capacity 500 Matter Stores 600 Matter Capacity 600 Sight Range 24 Robot Scan Range 20 Terrain Scan Density 10 Armor Coverage 1200 Resistance: KI 30 Resistance: TH 30 Utility Shielding 66 Weapon Cycling 15 Phase Shifting 15 Evasion (%) 85 Targeting Accuracy 12 Core Analysis 11 Recoil Reduction 3 Particle Charging 20 Kinecelleration 50 Offensive Hacking 14 Relay Coupler Types 7 Relay Coupler Value 362 Item Schematics ----------------- Exp. Cooling System | -3/Testing | Archive Robot Schematics ------------------ M-36 Artificer | -3/Testing | Archive Fabricated ------------ Biometal Heavy Treads | x1 | -4/Factory | Preloaded Repaired ---------- Imp. Light Cannon | 34% | -8/Materials Hvy. Linear Accelerator | 20% | -6/Factory Studied --------- Arm. Wheel | -8/Materials | Hacked Wheel | -8/Materials | Hacked Arm. Huge Wheel | -6/Factory | Hacked Hvy. Mass Driver | -5/Factory | Hacked Remote Datajack | -5/Factory | Hacked Med. Treads | -5/Factory | Hacked Centrium Leg | -2/Research | Hacked Adv. Remote Datajack | -2/Research | Hacked Enh. Hardcell Cannon | -2/Research | Hacked Biometal Leg | -2/Research | Hacked Alien Tech Used ----------------- None Achievements -------------- None Challenges ------------ None Game ------ Seed ShiftEnhancedShovel Manual? 0 Play Time 05:26:26 Cumulative 441.8 hours Start 2026.01.01 @ 13:57:50 End 2026.01.02 @ 11:10:15 Sessions 5 Manual Loads 0 Difficulty Rogue Special Mode None Game No. 210 Rogue 210 Adventurer 0 Explorer 0 Win Type - Total 13 Types 9/0/2/0/0/0/0/1/0/1 Lore% 85 Gallery% 82 Achievement% 61 Wizard Run 0 Options --------- Layout 1 ASCII 0 Keyboard 0 Movement Mouse Keybinds 0 Fullscreen 1 Font 24/Smallcaps Map View 50x35 Zoom Use 0% Tactical HUD 1 Map Filters NONE Filters NONE Steam 1 RUN: 81499384-563f-4a0a-80ff-37d9e6e2e053